[Event "December 5 Early 2023"]
[Site "https://www.chess.com"]
[Date "2023.12.05"]
[Round "2"]
[White "Kazakov, Mikhail"]
[Black "Kurbonboeva, Sarvinoz"]
[Result "1-0"]
[Board "215"]
[TimeControl "180+1"]
[WhiteFideId "14102749"]
[BlackFideId "14201780"]
[WhiteElo "2473"]
[BlackElo "2201"]
[WhiteTeam "UKR"]
[BlackTeam "UZB"]
[WhiteClock "0:00:18"]
[BlackClock "0:00:00"]

1. d4 {[%clk 0:03:00]}  d5 {[%clk 0:02:55]} 2. c4 {[%clk 0:03:00]}  e6 {[%clk 0:02:55]} 3. Nc3 {[%clk 0:02:59]}  c6 {[%clk 0:02:55]} 4. Nf3 {[%clk 0:02:57]}  Nf6 {[%clk 0:02:46]} 5. Bg5 {[%clk 0:02:55]}  Be7 {[%clk 0:02:42]} 6. e3 {[%clk 0:02:54]}  O-O {[%clk 0:02:40]} 7. Qc2 {[%clk 0:02:51]}  Nbd7 {[%clk 0:02:35]} 8. Rd1 {[%clk 0:02:49]}  b6 {[%clk 0:02:25]} 9. Bd3 {[%clk 0:02:43]}  Bb7 {[%clk 0:02:11]} 10. O-O {[%clk 0:02:41]}  Qc7 {[%clk 0:01:57]} 11. Bxh7+ {[%clk 0:02:30]}  Nxh7 {[%clk 0:01:50]} 12. Bxe7 {[%clk 0:02:28]}  Rfe8 {[%clk 0:01:47]} 13. Bh4 {[%clk 0:02:23]}  dxc4 {[%clk 0:01:47]} 14. Bg3 {[%clk 0:02:20]}  Qd8 {[%clk 0:01:43]} 15. Ne4 {[%clk 0:02:18]}  Ndf6 {[%clk 0:01:37]} 16. Nd6 {[%clk 0:02:11]}  Re7 {[%clk 0:01:37]} 17. Nxb7 {[%clk 0:02:03]}  Rxb7 {[%clk 0:01:36]} 18. Qxc4 {[%clk 0:02:02]}  Rc8 {[%clk 0:01:35]} 19. Qe2 {[%clk 0:01:53]}  Qe7 {[%clk 0:01:31]} 20. e4 {[%clk 0:01:52]}  Nh5 {[%clk 0:01:24]} 21. a3 {[%clk 0:01:49]}  Nxg3 {[%clk 0:01:22]} 22. hxg3 {[%clk 0:01:50]}  Nf6 {[%clk 0:01:19]} 23. Rd3 {[%clk 0:01:45]}  c5 {[%clk 0:00:58]} 24. dxc5 {[%clk 0:01:32]}  Rxc5 {[%clk 0:00:55]} 25. Rfd1 {[%clk 0:01:32]}  Rd7 {[%clk 0:00:51]} 26. Rxd7 {[%clk 0:01:29]}  Nxd7 {[%clk 0:00:51]} 27. e5 {[%clk 0:01:19]}  Rc8 {[%clk 0:00:35]} 28. Qe4 {[%clk 0:01:07]}  Nc5 {[%clk 0:00:27]} 29. Qf4 {[%clk 0:00:59]}  Rd8 {[%clk 0:00:19]} 30. Rxd8+ {[%clk 0:00:49]}  Qxd8 {[%clk 0:00:19]} 31. Kh2 {[%clk 0:00:31]}  Nd3 {[%clk 0:00:13]} 32. Qd2 {[%clk 0:00:28]}  Qd5 {[%clk 0:00:13]} 33. Qe3 {[%clk 0:00:26]}  Nxb2 {[%clk 0:00:09]} 34. Ng5 {[%clk 0:00:22]}  Nd3 {[%clk 0:00:06]} 35. f4 {[%clk 0:00:20]}  Nc5 {[%clk 0:00:03]} 36. Qe2 {[%clk 0:00:19]}  Kf8 {[%clk 0:00:00]} 37. Qh5 {[%clk 0:00:18]} 1-0

[Event "December 5 Early 2023"]
[Site "https://www.chess.com"]
[Date "2023.12.05"]
[Round "2"]
[White "Cagara, Paulina"]
[Black "Shishkov, Andrei"]
[Result "0-1"]
[Board "216"]
[TimeControl "180+1"]
[WhiteFideId "1124870"]
[BlackFideId "4500563"]
[WhiteElo "2201"]
[BlackElo "2472"]
[WhiteTeam "POL"]
[BlackTeam "EST"]
[WhiteClock "0:01:05"]
[BlackClock "0:00:59"]

1. e4 {[%clk 0:03:00]}  d5 {[%clk 0:02:59]} 2. exd5 {[%clk 0:03:00]}  Nf6 {[%clk 0:02:59]} 3. Nf3 {[%clk 0:02:58]}  Nxd5 {[%clk 0:03:00]} 4. d4 {[%clk 0:02:58]}  Bg4 {[%clk 0:03:00]} 5. Be2 {[%clk 0:02:57]}  Nc6 {[%clk 0:02:59]} 6. O-O {[%clk 0:02:54]}  e6 {[%clk 0:02:37]} 7. c4 {[%clk 0:02:51]}  Nb6 {[%clk 0:02:37]} 8. Be3 {[%clk 0:02:46]}  Bxf3 {[%clk 0:02:35]} 9. Bxf3 {[%clk 0:02:46]}  Nxc4 {[%clk 0:02:36]} 10. Bxc6+ {[%clk 0:02:45]}  bxc6 {[%clk 0:02:37]} 11. Qa4 {[%clk 0:02:42]}  Nb6 {[%clk 0:02:36]} 12. Qxc6+ {[%clk 0:02:41]}  Qd7 {[%clk 0:02:37]} 13. Qc2 {[%clk 0:02:35]}  Bd6 {[%clk 0:02:36]} 14. Nc3 {[%clk 0:02:32]}  O-O {[%clk 0:02:36]} 15. b3 {[%clk 0:02:29]}  Rfb8 {[%clk 0:02:33]} 16. Rad1 {[%clk 0:02:28]}  a5 {[%clk 0:02:25]} 17. d5 {[%clk 0:02:07]}  Nxd5 {[%clk 0:02:24]} 18. Nxd5 {[%clk 0:02:06]}  exd5 {[%clk 0:02:25]} 19. g3 {[%clk 0:02:01]}  c6 {[%clk 0:02:24]} 20. Rc1 {[%clk 0:01:57]}  Ra6 {[%clk 0:01:46]} 21. h4 {[%clk 0:01:45]}  c5 {[%clk 0:01:33]} 22. Kg2 {[%clk 0:01:43]}  d4 {[%clk 0:01:28]} 23. Bd2 {[%clk 0:01:38]}  a4 {[%clk 0:01:28]} 24. Qd3 {[%clk 0:01:26]}  Qb7+ {[%clk 0:01:19]} 25. Kh3 {[%clk 0:01:18]}  axb3 {[%clk 0:01:04]} 26. axb3 {[%clk 0:01:17]}  Ra3 {[%clk 0:01:02]} 27. Rb1 {[%clk 0:01:11]}  Rxb3 {[%clk 0:01:00]} 28. Rxb3 {[%clk 0:01:08]}  Qxb3 {[%clk 0:01:01]} 29. Qf5 {[%clk 0:01:05]}  Qe6 {[%clk 0:00:59]} 0-1

[Event "December 5 Early 2023"]
[Site "https://www.chess.com"]
[Date "2023.12.05"]
[Round "2"]
[White "Mazurkiewicz, Michal"]
[Black "Zoete, Roelant"]
[Result "1-0"]
[Board "217"]
[TimeControl "180+1"]
[WhiteFideId "1124943"]
[BlackFideId "40103269"]
[WhiteElo "2472"]
[BlackElo "2200"]
[WhiteTeam "POL"]
[BlackTeam "NED"]
[WhiteClock "0:01:59"]
[BlackClock "0:01:05"]

1. e4 {[%clk 0:03:00]}  e5 {[%clk 0:02:59]} 2. Nf3 {[%clk 0:03:00]}  Nc6 {[%clk 0:02:59]} 3. Bb5 {[%clk 0:03:00]}  a6 {[%clk 0:02:57]} 4. Bxc6 {[%clk 0:03:01]}  dxc6 {[%clk 0:02:58]} 5. O-O {[%clk 0:03:02]}  Bg4 {[%clk 0:02:58]} 6. h3 {[%clk 0:03:01]}  h5 {[%clk 0:02:59]} 7. d3 {[%clk 0:03:02]}  Qf6 {[%clk 0:02:59]} 8. Nbd2 {[%clk 0:03:02]}  g5 {[%clk 0:02:59]} 9. Nc4 {[%clk 0:03:02]}  Bxf3 {[%clk 0:02:50]} 10. Qxf3 {[%clk 0:03:03]}  Qxf3 {[%clk 0:02:48]} 11. gxf3 {[%clk 0:03:04]}  f6 {[%clk 0:02:49]} 12. h4 {[%clk 0:03:04]}  gxh4 {[%clk 0:02:43]} 13. f4 {[%clk 0:03:04]}  Bd6 {[%clk 0:02:34]} 14. fxe5 {[%clk 0:03:03]}  Bxe5 {[%clk 0:02:34]} 15. Nxe5 {[%clk 0:02:48]}  fxe5 {[%clk 0:02:35]} 16. f4 {[%clk 0:02:49]}  Nh6 {[%clk 0:02:21]} 17. fxe5 {[%clk 0:02:38]}  Rg8+ {[%clk 0:02:20]} 18. Kh1 {[%clk 0:02:38]}  Ng4 {[%clk 0:02:18]} 19. Rf5 {[%clk 0:02:29]}  h3 {[%clk 0:02:11]} 20. Bg5 {[%clk 0:02:15]}  Kd7 {[%clk 0:01:57]} 21. Rf7+ {[%clk 0:02:10]}  Ke8 {[%clk 0:01:51]} 22. Raf1 {[%clk 0:02:06]}  Rc8 {[%clk 0:01:10]} 23. Re7+ {[%clk 0:02:04]}  Kd8 {[%clk 0:01:10]} 24. Rg7+ {[%clk 0:02:04]}  Ke8 {[%clk 0:01:05]} 25. Rxg8+ {[%clk 0:02:02]}  Kd7 {[%clk 0:01:06]} 26. Rg7+ {[%clk 0:01:59]}  Ke6 {[%clk 0:01:05]} 27. Re7# {[%clk 0:01:59]} 1-0

[Event "December 5 Early 2023"]
[Site "https://www.chess.com"]
[Date "2023.12.05"]
[Round "2"]
[White "Tabuenca Mendataurigoitia, Daniel"]
[Black "Golubenko, Valentina"]
[Result "1-0"]
[Board "219"]
[TimeControl "180+1"]
[WhiteFideId "24563617"]
[BlackFideId "4501993"]
[WhiteElo "2471"]
[BlackElo "2194"]
[WhiteTeam "ESP"]
[BlackTeam "CRO"]
[WhiteClock "0:00:37"]
[BlackClock "0:00:06"]

1. Nf3 {[%clk 0:03:00]}  Nf6 {[%clk 0:02:57]} 2. g3 {[%clk 0:03:00]}  d5 {[%clk 0:02:56]} 3. Bg2 {[%clk 0:03:00]}  g6 {[%clk 0:02:56]} 4. O-O {[%clk 0:03:00]}  Bg7 {[%clk 0:02:56]} 5. d3 {[%clk 0:02:54]}  c5 {[%clk 0:02:56]} 6. Nbd2 {[%clk 0:02:53]}  O-O {[%clk 0:02:56]} 7. e4 {[%clk 0:02:52]}  d4 {[%clk 0:02:56]} 8. a4 {[%clk 0:02:48]}  Nc6 {[%clk 0:02:54]} 9. h3 {[%clk 0:02:45]}  e5 {[%clk 0:02:52]} 10. Nc4 {[%clk 0:02:41]}  Re8 {[%clk 0:02:51]} 11. a5 {[%clk 0:02:36]}  Rb8 {[%clk 0:02:47]} 12. c3 {[%clk 0:02:26]}  b5 {[%clk 0:02:46]} 13. axb6 {[%clk 0:02:25]}  axb6 {[%clk 0:02:46]} 14. cxd4 {[%clk 0:02:25]}  cxd4 {[%clk 0:02:34]} 15. Bd2 {[%clk 0:02:24]}  b5 {[%clk 0:02:34]} 16. Na5 {[%clk 0:02:24]}  Nxa5 {[%clk 0:02:26]} 17. Bxa5 {[%clk 0:02:22]}  Qd6 {[%clk 0:02:22]} 18. Qc2 {[%clk 0:02:12]}  Rb7 {[%clk 0:02:17]} 19. Rfc1 {[%clk 0:02:08]}  Be6 {[%clk 0:02:14]} 20. Bc7 {[%clk 0:02:07]}  Qb4 {[%clk 0:02:02]} 21. Bxe5 {[%clk 0:02:07]}  Nd7 {[%clk 0:01:36]} 22. Bxg7 {[%clk 0:02:05]}  Kxg7 {[%clk 0:01:36]} 23. Ra6 {[%clk 0:01:43]}  Nb6 {[%clk 0:01:08]} 24. Qc6 {[%clk 0:01:32]}  Rc8 {[%clk 0:01:07]} 25. Qxb7 {[%clk 0:01:32]}  Rxc1+ {[%clk 0:01:06]} 26. Kh2 {[%clk 0:01:32]}  Na4 {[%clk 0:00:56]} 27. Rxe6 {[%clk 0:01:10]}  Nc5 {[%clk 0:00:33]} 28. Qe7 {[%clk 0:01:08]}  Nxd3 {[%clk 0:00:25]} 29. Qf6+ {[%clk 0:01:06]}  Kh6 {[%clk 0:00:19]} 30. Qxf7 {[%clk 0:00:48]}  Nxf2 {[%clk 0:00:17]} 31. Qf4+ {[%clk 0:00:45]}  Kg7 {[%clk 0:00:16]} 32. Qxc1 {[%clk 0:00:43]}  d3 {[%clk 0:00:17]} 33. Qc7+ {[%clk 0:00:41]}  Kh6 {[%clk 0:00:15]} 34. Qf4+ {[%clk 0:00:40]}  Kg7 {[%clk 0:00:15]} 35. Ng5 {[%clk 0:00:41]}  d2 {[%clk 0:00:11]} 36. Qf6+ {[%clk 0:00:38]}  Kh6 {[%clk 0:00:06]} 37. Nf7+ {[%clk 0:00:37]} 1-0

[Event "December 5 Early 2023"]
[Site "https://www.chess.com"]
[Date "2023.12.05"]
[Round "2"]
[White "Yurasova, Daria"]
[Black "Michalski, Olaf"]
[Result "0-1"]
[Board "225"]
[TimeControl "180+1"]
[WhiteFideId "34146919"]
[BlackFideId "1106740"]
[WhiteElo "2461"]
[BlackElo "2160"]
[WhiteTeam "RUS"]
[BlackTeam "POL"]
[WhiteClock "0:00:00"]
[BlackClock "0:00:02"]

1. e4 {[%clk 0:03:00]}  c5 {[%clk 0:02:39]} 2. Nf3 {[%clk 0:02:59]}  a6 {[%clk 0:02:39]} 3. d4 {[%clk 0:02:59]}  cxd4 {[%clk 0:02:39]} 4. Nxd4 {[%clk 0:03:00]}  Nf6 {[%clk 0:02:40]} 5. c4 {[%clk 0:03:00]}  Nxe4 {[%clk 0:02:36]} 6. Bd3 {[%clk 0:02:57]}  Nf6 {[%clk 0:02:31]} 7. O-O {[%clk 0:02:57]}  Nc6 {[%clk 0:02:27]} 8. Nxc6 {[%clk 0:02:56]}  bxc6 {[%clk 0:02:23]} 9. Nc3 {[%clk 0:02:55]}  e6 {[%clk 0:02:23]} 10. b3 {[%clk 0:02:55]}  Be7 {[%clk 0:02:23]} 11. Bb2 {[%clk 0:02:24]}  d5 {[%clk 0:02:23]} 12. cxd5 {[%clk 0:02:23]}  cxd5 {[%clk 0:02:22]} 13. Na4 {[%clk 0:02:23]}  Bd7 {[%clk 0:02:17]} 14. Nc3 {[%clk 0:02:02]}  O-O {[%clk 0:02:11]} 15. Ne2 {[%clk 0:02:00]}  Ne8 {[%clk 0:01:54]} 16. Nd4 {[%clk 0:01:58]}  Bf6 {[%clk 0:01:49]} 17. Rc1 {[%clk 0:01:56]}  Qb6 {[%clk 0:01:41]} 18. Bb1 {[%clk 0:01:55]}  g6 {[%clk 0:01:25]} 19. Qd3 {[%clk 0:01:48]}  e5 {[%clk 0:01:21]} 20. Ne2 {[%clk 0:01:09]}  Bb5 {[%clk 0:01:01]} 21. Qxd5 {[%clk 0:00:57]}  Rd8 {[%clk 0:00:51]} 22. Qf3 {[%clk 0:00:40]}  e4 {[%clk 0:00:50]} 23. Qxe4 {[%clk 0:00:31]}  Bxb2 {[%clk 0:00:47]} 24. Rcd1 {[%clk 0:00:17]}  Nd6 {[%clk 0:00:29]} 25. Qf3 {[%clk 0:00:13]}  Rfe8 {[%clk 0:00:23]} 26. Rfe1 {[%clk 0:00:13]}  Bg7 {[%clk 0:00:19]} 27. Ng3 {[%clk 0:00:11]}  Rxe1+ {[%clk 0:00:17]} 28. Rxe1 {[%clk 0:00:12]}  Re8 {[%clk 0:00:15]} 29. Rd1 {[%clk 0:00:10]}  h5 {[%clk 0:00:11]} 30. h4 {[%clk 0:00:10]}  Re6 {[%clk 0:00:10]} 31. Qd5 {[%clk 0:00:10]}  Bc6 {[%clk 0:00:08]} 32. Qd2 {[%clk 0:00:07]}  Qb7 {[%clk 0:00:08]} 33. f3 {[%clk 0:00:04]}  Nb5 {[%clk 0:00:04]} 34. Kh2 {[%clk 0:00:04]}  Nc3 {[%clk 0:00:04]} 35. Qd8+ {[%clk 0:00:04]}  Kh7 {[%clk 0:00:04]} 36. Rd6 {[%clk 0:00:03]}  Nxb1 {[%clk 0:00:04]} 37. Rxe6 {[%clk 0:00:01]}  fxe6 {[%clk 0:00:04]} 38. Ne2 {[%clk 0:00:00]}  Qf7 {[%clk 0:00:02]} 0-1

[Event "December 5 Early 2023"]
[Site "https://www.chess.com"]
[Date "2023.12.05"]
[Round "2"]
[White "Ljukin, Sergei"]
[Black "Pertinez Soria, Juan Luis"]
[Result "1-0"]
[Board "226"]
[TimeControl "180+1"]
[WhiteFideId "14102200"]
[BlackFideId "2225620"]
[WhiteElo "2458"]
[BlackElo "2154"]
[WhiteTeam "UKR"]
[BlackTeam "ESP"]
[WhiteClock "0:01:10"]
[BlackClock "0:00:06"]

1. e4 {[%clk 0:03:00]}  c5 {[%clk 0:02:59]} 2. Nf3 {[%clk 0:03:00]}  d6 {[%clk 0:02:59]} 3. d4 {[%clk 0:03:00]}  cxd4 {[%clk 0:03:00]} 4. Nxd4 {[%clk 0:03:01]}  Nf6 {[%clk 0:03:00]} 5. Nc3 {[%clk 0:03:02]}  a6 {[%clk 0:03:00]} 6. Bg5 {[%clk 0:03:02]}  e6 {[%clk 0:03:00]} 7. f4 {[%clk 0:03:02]}  Be7 {[%clk 0:03:01]} 8. Qf3 {[%clk 0:03:03]}  Nbd7 {[%clk 0:03:01]} 9. O-O-O {[%clk 0:03:03]}  Qc7 {[%clk 0:03:02]} 10. g4 {[%clk 0:03:03]}  Rb8 {[%clk 0:02:50]} 11. Bxf6 {[%clk 0:02:57]}  Nxf6 {[%clk 0:02:47]} 12. g5 {[%clk 0:02:57]}  Nd7 {[%clk 0:02:47]} 13. f5 {[%clk 0:02:58]}  Bxg5+ {[%clk 0:02:46]} 14. Kb1 {[%clk 0:02:57]}  Ne5 {[%clk 0:02:46]} 15. Qh5 {[%clk 0:02:58]}  h6 {[%clk 0:02:41]} 16. Nxe6 {[%clk 0:02:38]}  Bxe6 {[%clk 0:02:39]} 17. fxe6 {[%clk 0:02:39]}  O-O {[%clk 0:02:14]} 18. h4 {[%clk 0:02:38]}  g6 {[%clk 0:01:53]} 19. Qe2 {[%clk 0:02:29]}  Bd8 {[%clk 0:01:51]} 20. Nd5 {[%clk 0:02:25]}  Qa5 {[%clk 0:01:26]} 21. e7 {[%clk 0:02:23]}  Bxe7 {[%clk 0:01:23]} 22. Nxe7+ {[%clk 0:02:24]}  Kg7 {[%clk 0:01:20]} 23. h5 {[%clk 0:02:23]}  b5 {[%clk 0:01:14]} 24. hxg6 {[%clk 0:02:12]}  fxg6 {[%clk 0:01:13]} 25. Rg1 {[%clk 0:01:44]}  Rf6 {[%clk 0:01:07]} 26. Nd5 {[%clk 0:01:42]}  Rf7 {[%clk 0:00:33]} 27. Ne3 {[%clk 0:01:41]}  Qb4 {[%clk 0:00:29]} 28. Nf5+ {[%clk 0:01:23]}  Rxf5 {[%clk 0:00:21]} 29. exf5 {[%clk 0:01:23]}  Re8 {[%clk 0:00:18]} 30. Rxg6+ {[%clk 0:01:19]}  Kh7 {[%clk 0:00:18]} 31. Qh5 {[%clk 0:01:12]}  Nxg6 {[%clk 0:00:10]} 32. Qxg6+ {[%clk 0:01:12]}  Kh8 {[%clk 0:00:11]} 33. Qxe8+ {[%clk 0:01:12]}  Kg7 {[%clk 0:00:11]} 34. Qg6+ {[%clk 0:01:12]}  Kf8 {[%clk 0:00:06]} 35. f6 {[%clk 0:01:10]} 1-0

[Event "December 5 Early 2023"]
[Site "https://www.chess.com"]
[Date "2023.12.05"]
[Round "2"]
[White "pauliukevicius"]
[Black "Muskardin, Mario"]
[Result "0-1"]
[Board "227"]
[TimeControl "180+1"]
[BlackFideId "14518180"]
[WhiteElo "2151"]
[BlackElo "2454"]
[BlackTeam "CRO"]
[WhiteClock "0:00:00"]
[BlackClock "0:00:42"]

1. d4 {[%clk 0:03:00]}  Nf6 {[%clk 0:02:59]} 2. c4 {[%clk 0:03:01]}  e6 {[%clk 0:03:00]} 3. Nc3 {[%clk 0:03:00]}  Bb4 {[%clk 0:03:00]} 4. e3 {[%clk 0:03:01]}  b6 {[%clk 0:02:59]} 5. f3 {[%clk 0:03:00]}  O-O {[%clk 0:02:57]} 6. e4 {[%clk 0:02:57]}  d6 {[%clk 0:02:56]} 7. Bd3 {[%clk 0:02:18]}  e5 {[%clk 0:02:56]} 8. d5 {[%clk 0:02:07]}  Bxc3+ {[%clk 0:02:46]} 9. bxc3 {[%clk 0:02:07]}  Nh5 {[%clk 0:02:45]} 10. Ne2 {[%clk 0:02:04]}  f5 {[%clk 0:02:45]} 11. Be3 {[%clk 0:01:57]}  fxe4 {[%clk 0:02:37]} 12. fxe4 {[%clk 0:01:55]}  Nd7 {[%clk 0:02:14]} 13. Qd2 {[%clk 0:01:52]}  Nc5 {[%clk 0:01:55]} 14. Bc2 {[%clk 0:01:18]}  Nxe4 {[%clk 0:01:39]} 15. Qd3 {[%clk 0:00:10]}  Bf5 {[%clk 0:01:12]} 16. O-O-O {[%clk 0:00:06]}  Neg3 {[%clk 0:01:00]} 17. Qd2 {[%clk 0:00:03]}  Nxh1 {[%clk 0:00:58]} 18. Bxf5 {[%clk 0:00:02]}  Rxf5 {[%clk 0:00:56]} 19. g4 {[%clk 0:00:02]}  Nf2 {[%clk 0:00:43]} 20. Rf1 {[%clk 0:00:00]}  Ne4 {[%clk 0:00:42]} 0-1

[Event "December 5 Early 2023"]
[Site "https://www.chess.com"]
[Date "2023.12.05"]
[Round "2"]
[White "Teumer, Joerg, Dr."]
[Black "Zimmermann, Ulrich"]
[Result "1/2-1/2"]
[Board "229"]
[TimeControl "180+1"]
[WhiteFideId "4643526"]
[BlackFideId "24654523"]
[WhiteElo "2132"]
[BlackElo "2451"]
[WhiteTeam "GER"]
[BlackTeam "GER"]
[WhiteClock "0:00:12"]
[BlackClock "0:00:10"]

1. d4 {[%clk 0:03:00]}  d6 {[%clk 0:03:00]} 2. e4 {[%clk 0:02:57]}  e6 {[%clk 0:03:01]} 3. Nc3 {[%clk 0:02:56]}  Ne7 {[%clk 0:03:02]} 4. Be3 {[%clk 0:02:54]}  h6 {[%clk 0:03:03]} 5. Qd2 {[%clk 0:02:53]}  a6 {[%clk 0:03:04]} 6. f4 {[%clk 0:02:49]}  b5 {[%clk 0:03:04]} 7. a3 {[%clk 0:02:47]}  Bb7 {[%clk 0:03:03]} 8. Bd3 {[%clk 0:02:46]}  Nd7 {[%clk 0:03:03]} 9. Nf3 {[%clk 0:02:46]}  c5 {[%clk 0:03:02]} 10. e5 {[%clk 0:02:39]}  cxd4 {[%clk 0:02:52]} 11. Bxd4 {[%clk 0:02:32]}  Bxf3 {[%clk 0:02:41]} 12. gxf3 {[%clk 0:02:29]}  Nc6 {[%clk 0:02:40]} 13. Be4 {[%clk 0:02:21]}  d5 {[%clk 0:02:39]} 14. Nxd5 {[%clk 0:02:14]}  exd5 {[%clk 0:02:40]} 15. Bxd5 {[%clk 0:02:14]}  Nxd4 {[%clk 0:02:28]} 16. Qxd4 {[%clk 0:02:12]}  Bc5 {[%clk 0:02:24]} 17. Qd3 {[%clk 0:02:08]}  Nb6 {[%clk 0:02:18]} 18. Bxa8 {[%clk 0:02:04]}  Qxa8 {[%clk 0:02:07]} 19. O-O-O {[%clk 0:02:00]}  O-O {[%clk 0:02:04]} 20. Kb1 {[%clk 0:01:53]}  Rc8 {[%clk 0:01:55]} 21. Qe4 {[%clk 0:01:47]}  Qxe4 {[%clk 0:01:38]} 22. fxe4 {[%clk 0:01:47]}  Kf8 {[%clk 0:01:39]} 23. Rd3 {[%clk 0:01:44]}  g6 {[%clk 0:01:38]} 24. Rhd1 {[%clk 0:01:43]}  Ke7 {[%clk 0:01:38]} 25. h3 {[%clk 0:01:35]}  a5 {[%clk 0:01:36]} 26. Ka2 {[%clk 0:01:26]}  a4 {[%clk 0:01:33]} 27. b3 {[%clk 0:01:22]}  axb3+ {[%clk 0:01:31]} 28. cxb3 {[%clk 0:01:22]}  Ra8 {[%clk 0:01:31]} 29. Rc3 {[%clk 0:01:11]}  Bxa3 {[%clk 0:01:22]} 30. Rc7+ {[%clk 0:01:08]}  Ke8 {[%clk 0:01:20]} 31. Kb1 {[%clk 0:01:04]}  Rc8 {[%clk 0:01:14]} 32. Rxc8+ {[%clk 0:01:02]}  Nxc8 {[%clk 0:01:15]} 33. Rd5 {[%clk 0:01:00]}  b4 {[%clk 0:01:12]} 34. Rc5 {[%clk 0:00:59]}  Ne7 {[%clk 0:01:07]} 35. Rc7 {[%clk 0:00:57]}  Kd8 {[%clk 0:01:03]} 36. Rb7 {[%clk 0:00:58]}  Ke8 {[%clk 0:01:01]} 37. Kc2 {[%clk 0:00:57]}  Kf8 {[%clk 0:00:59]} 38. Kd3 {[%clk 0:00:57]}  Nc6 {[%clk 0:00:59]} 39. Rc7 {[%clk 0:00:56]}  Na5 {[%clk 0:00:59]} 40. Kc2 {[%clk 0:00:55]}  Ke8 {[%clk 0:00:45]} 41. f5 {[%clk 0:00:55]}  g5 {[%clk 0:00:42]} 42. e6 {[%clk 0:00:46]}  fxe6 {[%clk 0:00:41]} 43. fxe6 {[%clk 0:00:46]}  h5 {[%clk 0:00:39]} 44. Rg7 {[%clk 0:00:44]}  g4 {[%clk 0:00:36]} 45. hxg4 {[%clk 0:00:44]}  hxg4 {[%clk 0:00:37]} 46. Rxg4 {[%clk 0:00:42]}  Ke7 {[%clk 0:00:37]} 47. Rg5 {[%clk 0:00:42]}  Nc6 {[%clk 0:00:37]} 48. Rc5 {[%clk 0:00:40]}  Nd4+ {[%clk 0:00:35]} 49. Kd3 {[%clk 0:00:37]}  Nxb3 {[%clk 0:00:36]} 50. Rc6 {[%clk 0:00:32]}  Nc1+ {[%clk 0:00:18]} 51. Kc2 {[%clk 0:00:30]}  Ne2 {[%clk 0:00:16]} 52. Ra6 {[%clk 0:00:27]}  Nd4+ {[%clk 0:00:15]} 53. Kd3 {[%clk 0:00:24]}  Nxe6 {[%clk 0:00:15]} 54. Kc4 {[%clk 0:00:20]}  Ng5 {[%clk 0:00:15]} 55. Ra7+ {[%clk 0:00:19]}  Ke6 {[%clk 0:00:15]} 56. Ra6+ {[%clk 0:00:20]}  Kf7 {[%clk 0:00:15]} 57. Rb6 {[%clk 0:00:19]}  Nxe4 {[%clk 0:00:11]} 58. Rxb4 {[%clk 0:00:15]}  Nd6+ {[%clk 0:00:11]} 59. Kb3 {[%clk 0:00:12]}  Bxb4 {[%clk 0:00:10]} 60. Kxb4 {[%clk 0:00:12]} 1/2-1/2

[Event "December 5 Early 2023"]
[Site "https://www.chess.com"]
[Date "2023.12.05"]
[Round "2"]
[White "Ozen, Metehan"]
[Black "Jesusesmifuerza"]
[Result "1-0"]
[Board "230"]
[TimeControl "180+1"]
[WhiteFideId "34596054"]
[WhiteElo "2451"]
[BlackElo "2131"]
[WhiteTeam "TUR"]
[WhiteClock "0:02:16"]
[BlackClock "0:01:14"]

1. e4 {[%clk 0:03:00]}  e5 {[%clk 0:02:59]} 2. Nf3 {[%clk 0:03:00]}  Nc6 {[%clk 0:03:00]} 3. Bb5 {[%clk 0:03:00]}  a6 {[%clk 0:03:00]} 4. Ba4 {[%clk 0:03:00]}  Nf6 {[%clk 0:02:59]} 5. d3 {[%clk 0:03:01]}  Bc5 {[%clk 0:02:59]} 6. O-O {[%clk 0:03:00]}  d6 {[%clk 0:02:53]} 7. c3 {[%clk 0:03:00]}  Bd7 {[%clk 0:02:51]} 8. h3 {[%clk 0:03:00]}  h6 {[%clk 0:02:52]} 9. d4 {[%clk 0:02:59]}  exd4 {[%clk 0:02:51]} 10. cxd4 {[%clk 0:02:59]}  Bb6 {[%clk 0:02:51]} 11. Nc3 {[%clk 0:02:55]}  O-O {[%clk 0:02:50]} 12. Be3 {[%clk 0:02:50]}  Re8 {[%clk 0:02:46]} 13. Bc2 {[%clk 0:02:50]}  Ne7 {[%clk 0:02:32]} 14. e5 {[%clk 0:02:33]}  dxe5 {[%clk 0:02:32]} 15. dxe5 {[%clk 0:02:33]}  Bxe3 {[%clk 0:02:27]} 16. exf6 {[%clk 0:02:33]}  Nf5 {[%clk 0:01:53]} 17. Bxf5 {[%clk 0:02:24]}  Bxf5 {[%clk 0:01:54]} 18. fxe3 {[%clk 0:02:24]}  Qxf6 {[%clk 0:01:51]} 19. Nd4 {[%clk 0:02:23]}  Rad8 {[%clk 0:01:30]} 20. Rxf5 {[%clk 0:02:21]}  Qxf5 {[%clk 0:01:27]} 21. Nxf5 {[%clk 0:02:19]}  Rxd1+ {[%clk 0:01:27]} 22. Rxd1 {[%clk 0:02:20]}  Re5 {[%clk 0:01:25]} 23. e4 {[%clk 0:02:18]}  Kh7 {[%clk 0:01:22]} 24. Rd7 {[%clk 0:02:16]}  g6 {[%clk 0:01:19]} 25. Rxf7+ {[%clk 0:02:16]}  Kg8 {[%clk 0:01:18]} 26. Nxh6+ {[%clk 0:02:16]}  Kh8 {[%clk 0:01:14]} 27. Rxc7 {[%clk 0:02:16]} 1-0